[Event "Titled Tuesday Blitz March 28 Early 2023"]
[White "Palacio,Igor Da Paz"]
[Black "ArchibaldCerveza29"]
[WhiteFideId "2121140"]
[WhiteElo "2126"]
[BlackElo "2485"]
[Result "0-1"]
[Round "04"]
[TimeControl "180+2"]
[Date "2023.03.28"]
[WhiteClock "0:00:01"]
[BlackClock "0:00:18"]

1. e4 {[%clk 0:03:00]}  e5 {[%clk 0:02:59]} 2. Nf3 {[%clk 0:03:00]}  Nc6 {[%clk 0:02:53]} 3. c3 {[%clk 0:03:00]}  d5 {[%clk 0:02:51]} 4. Qa4 {[%clk 0:02:59]}  f6 {[%clk 0:02:50]} 5. d3 {[%clk 0:02:59]}  Ne7 {[%clk 0:02:41]} 6. b4 {[%clk 0:02:59]}  Bd7 {[%clk 0:02:33]} 7. b5 {[%clk 0:02:54]}  Nb8 {[%clk 0:02:31]} 8. Qb3 {[%clk 0:02:43]}  Be6 {[%clk 0:02:28]} 9. c4 {[%clk 0:02:37]}  c6 {[%clk 0:02:15]} 10. a4 {[%clk 0:02:32]}  Nd7 {[%clk 0:02:11]} 11. Ba3 {[%clk 0:02:22]}  dxe4 {[%clk 0:01:54]} 12. dxe4 {[%clk 0:02:21]}  Ng6 {[%clk 0:01:44]} 13. Nbd2 {[%clk 0:02:17]}  Bxa3 {[%clk 0:01:41]} 14. Qxa3 {[%clk 0:02:17]}  Qe7 {[%clk 0:01:41]} 15. Qxe7+ {[%clk 0:02:12]}  Kxe7 {[%clk 0:01:41]} 16. g3 {[%clk 0:02:12]}  Nc5 {[%clk 0:01:21]} 17. h4 {[%clk 0:02:08]}  h5 {[%clk 0:01:20]} 18. Be2 {[%clk 0:02:06]}  Rhd8 {[%clk 0:01:20]} 19. Ra3 {[%clk 0:01:46]}  Nf8 {[%clk 0:01:18]} 20. O-O {[%clk 0:01:38]}  Bg4 {[%clk 0:01:18]} 21. Rd1 {[%clk 0:01:04]}  Nfe6 {[%clk 0:01:13]} 22. Kf1 {[%clk 0:00:58]}  Rd6 {[%clk 0:00:51]} 23. Ke1 {[%clk 0:00:51]}  Rad8 {[%clk 0:00:52]} 24. a5 {[%clk 0:00:46]}  Bxf3 {[%clk 0:00:36]} 25. Bxf3 {[%clk 0:00:44]}  Nd4 {[%clk 0:00:36]} 26. Rc3 {[%clk 0:00:17]}  Nxf3+ {[%clk 0:00:17]} 27. Rxf3 {[%clk 0:00:18]}  Nxe4 {[%clk 0:00:18]} 28. Nxe4 {[%clk 0:00:03]}  Rxd1+ {[%clk 0:00:19]} 29. Ke2 {[%clk 0:00:03]}  Ra1 {[%clk 0:00:19]} 30. bxc6 {[%clk 0:00:03]}  bxc6 {[%clk 0:00:19]} 31. Rd3 {[%clk 0:00:02]}  Rxd3 {[%clk 0:00:18]} 32. Kxd3 {[%clk 0:00:03]}  Rxa5 {[%clk 0:00:19]} 33. Kc3 {[%clk 0:00:03]}  Ra2 {[%clk 0:00:18]} 34. Kb3 {[%clk 0:00:02]}  Re2 {[%clk 0:00:18]} 35. Nc5 {[%clk 0:00:01]}  Rxf2 {[%clk 0:00:18]} 0-1


[Site "https://www.chess.com"]

[Event "Titled Tuesday Blitz March 28 Early 2023"]
[White "Tagliata"]
[Black "Corredor Castellanos, Camilo"]
[BlackFideId "4425871"]
[WhiteElo "2196"]
[BlackElo "1994"]
[Result "0-1"]
[Round "04"]
[TimeControl "180+2"]
[Date "2023.03.28"]
[WhiteClock "0:00:23"]
[BlackClock "0:00:23"]

1. e4 {[%clk 0:03:00]}  c5 {[%clk 0:02:57]} 2. Nf3 {[%clk 0:02:59]}  d6 {[%clk 0:02:54]} 3. Bb5+ {[%clk 0:02:59]}  Nd7 {[%clk 0:02:49]} 4. c4 {[%clk 0:02:58]}  a6 {[%clk 0:02:40]} 5. Ba4 {[%clk 0:02:58]}  Rb8 {[%clk 0:02:38]} 6. Nc3 {[%clk 0:02:57]}  e5 {[%clk 0:02:32]} 7. a3 {[%clk 0:02:55]}  Nf6 {[%clk 0:02:28]} 8. b4 {[%clk 0:02:52]}  cxb4 {[%clk 0:02:24]} 9. axb4 {[%clk 0:02:53]}  Be7 {[%clk 0:02:24]} 10. O-O {[%clk 0:02:52]}  O-O {[%clk 0:02:24]} 11. d3 {[%clk 0:02:48]}  a5 {[%clk 0:02:21]} 12. bxa5 {[%clk 0:02:33]}  Nc5 {[%clk 0:02:18]} 13. Bb5 {[%clk 0:02:26]}  Bg4 {[%clk 0:02:11]} 14. Ba3 {[%clk 0:02:18]}  Nfd7 {[%clk 0:02:06]} 15. h3 {[%clk 0:02:14]}  Bh5 {[%clk 0:02:02]} 16. Nd5 {[%clk 0:02:12]}  f5 {[%clk 0:01:58]} 17. exf5 {[%clk 0:02:09]}  Rxf5 {[%clk 0:01:57]} 18. g4 {[%clk 0:02:08]}  Bh4 {[%clk 0:01:47]} 19. gxf5 {[%clk 0:01:42]}  e4 {[%clk 0:01:47]} 20. dxe4 {[%clk 0:01:35]}  Ne5 {[%clk 0:01:40]} 21. Qc1 {[%clk 0:01:11]}  Bxf3 {[%clk 0:01:31]} 22. Bxc5 {[%clk 0:01:09]}  dxc5 {[%clk 0:01:28]} 23. Qf4 {[%clk 0:01:08]}  Ra8 {[%clk 0:00:47]} 24. Qxe5 {[%clk 0:00:46]}  Qg5+ {[%clk 0:00:44]} 25. Qg3 {[%clk 0:00:40]}  Bxg3 {[%clk 0:00:35]} 26. Ne7+ {[%clk 0:00:37]}  Kf7 {[%clk 0:00:32]} 27. Rfc1 {[%clk 0:00:23]}  Bf4+ {[%clk 0:00:23]} 0-1


[Site "https://www.chess.com"]

[Event "Titled Tuesday Blitz March 28 Early 2023"]
[White "Hartikainen, Jarmo"]
[Black "Silvestre, Christian"]
[WhiteFideId "503134"]
[BlackFideId "30956269"]
[WhiteElo "2178"]
[BlackElo "2363"]
[Result "0-1"]
[Round "04"]
[TimeControl "180+2"]
[Date "2023.03.28"]
[WhiteClock "0:00:15"]
[BlackClock "0:01:21"]

1. e4 {[%clk 0:03:00]}  c6 {[%clk 0:02:59]} 2. d4 {[%clk 0:03:00]}  d5 {[%clk 0:02:59]} 3. Nc3 {[%clk 0:03:00]}  a6 {[%clk 0:02:59]} 4. Nf3 {[%clk 0:02:48]}  Bg4 {[%clk 0:02:57]} 5. Be2 {[%clk 0:02:34]}  Bxf3 {[%clk 0:02:54]} 6. Bxf3 {[%clk 0:02:33]}  e6 {[%clk 0:02:55]} 7. a3 {[%clk 0:02:25]}  Nf6 {[%clk 0:02:53]} 8. Be3 {[%clk 0:02:15]}  Be7 {[%clk 0:02:47]} 9. O-O {[%clk 0:02:15]}  Nbd7 {[%clk 0:02:40]} 10. Re1 {[%clk 0:02:10]}  Nb6 {[%clk 0:02:40]} 11. b3 {[%clk 0:02:04]}  O-O {[%clk 0:02:34]} 12. Qd3 {[%clk 0:01:17]}  Nfd7 {[%clk 0:02:30]} 13. Red1 {[%clk 0:01:04]}  Bg5 {[%clk 0:02:28]} 14. g3 {[%clk 0:00:54]}  Rc8 {[%clk 0:02:26]} 15. Bg2 {[%clk 0:00:48]}  Bxe3 {[%clk 0:02:26]} 16. Qxe3 {[%clk 0:00:41]}  Nf6 {[%clk 0:02:26]} 17. h3 {[%clk 0:00:37]}  Re8 {[%clk 0:02:23]} 18. e5 {[%clk 0:00:36]}  Nfd7 {[%clk 0:02:23]} 19. Ne2 {[%clk 0:00:37]}  c5 {[%clk 0:02:23]} 20. c3 {[%clk 0:00:37]}  cxd4 {[%clk 0:02:21]} 21. cxd4 {[%clk 0:00:37]}  Qe7 {[%clk 0:02:16]} 22. Rdc1 {[%clk 0:00:18]}  Rxc1+ {[%clk 0:02:14]} 23. Nxc1 {[%clk 0:00:19]}  Rc8 {[%clk 0:02:13]} 24. Nd3 {[%clk 0:00:19]}  h6 {[%clk 0:02:10]} 25. Qd2 {[%clk 0:00:18]}  Nb8 {[%clk 0:02:07]} 26. Kh2 {[%clk 0:00:18]}  Nc6 {[%clk 0:02:07]} 27. f4 {[%clk 0:00:17]}  Nxd4 {[%clk 0:02:06]} 28. Nb4 {[%clk 0:00:16]}  Nxb3 {[%clk 0:01:32]} 29. Qe3 {[%clk 0:00:15]}  Nxa1 {[%clk 0:01:21]} 0-1


[Site "https://www.chess.com"]

[Event "Titled Tuesday Blitz March 28 Early 2023"]
[White "Fathy, Elameir"]
[Black "Napoli, Nicolo"]
[WhiteFideId "10600396"]
[BlackFideId "813702"]
[WhiteElo "2311"]
[BlackElo "2308"]
[Result "0-1"]
[Round "04"]
[TimeControl "180+2"]
[Date "2023.03.28"]
[WhiteClock "0:00:49"]
[BlackClock "0:00:40"]

1. d4 {[%clk 0:03:00]}  d5 {[%clk 0:02:55]} 2. c4 {[%clk 0:02:57]}  c6 {[%clk 0:02:53]} 3. Nc3 {[%clk 0:02:56]}  Nf6 {[%clk 0:02:52]} 4. e3 {[%clk 0:02:55]}  Bf5 {[%clk 0:02:48]} 5. cxd5 {[%clk 0:02:54]}  cxd5 {[%clk 0:02:47]} 6. Qb3 {[%clk 0:02:54]}  Qc8 {[%clk 0:02:46]} 7. Nxd5 {[%clk 0:02:51]}  e6 {[%clk 0:02:20]} 8. Nxf6+ {[%clk 0:02:48]}  gxf6 {[%clk 0:02:21]} 9. Nf3 {[%clk 0:02:48]}  Nc6 {[%clk 0:02:19]} 10. Bd2 {[%clk 0:02:47]}  Bd6 {[%clk 0:02:18]} 11. Be2 {[%clk 0:02:40]}  Qc7 {[%clk 0:02:12]} 12. O-O-O {[%clk 0:02:30]}  Nxd4+ {[%clk 0:02:00]} 13. Bc3 {[%clk 0:01:47]}  Nxb3+ {[%clk 0:01:57]} 14. axb3 {[%clk 0:01:48]}  Bb4 {[%clk 0:01:52]} 15. Bb5+ {[%clk 0:01:46]}  Kf8 {[%clk 0:01:50]} 16. Rd7 {[%clk 0:01:45]}  Qc5 {[%clk 0:01:43]} 17. Bc4 {[%clk 0:01:36]}  Bxc3 {[%clk 0:01:37]} 18. bxc3 {[%clk 0:01:37]}  Qa3+ {[%clk 0:01:37]} 19. Kd2 {[%clk 0:01:36]}  Qb2+ {[%clk 0:01:38]} 20. Ke1 {[%clk 0:01:35]}  Qxc3+ {[%clk 0:01:36]} 21. Ke2 {[%clk 0:01:36]}  Rc8 {[%clk 0:01:28]} 22. Rd4 {[%clk 0:01:22]}  Qc2+ {[%clk 0:01:20]} 23. Rd2 {[%clk 0:01:20]}  Qc3 {[%clk 0:01:15]} 24. Rd4 {[%clk 0:01:20]}  e5 {[%clk 0:01:13]} 25. Rh4 {[%clk 0:01:20]}  Qc2+ {[%clk 0:01:09]} 26. Nd2 {[%clk 0:01:20]}  Rd8 {[%clk 0:01:08]} 27. Rd1 {[%clk 0:01:20]}  Bd3+ {[%clk 0:01:08]} 28. Ke1 {[%clk 0:01:17]}  Bxc4 {[%clk 0:01:07]} 29. Rxc4 {[%clk 0:01:18]}  Qf5 {[%clk 0:01:05]} 30. Rc7 {[%clk 0:01:14]}  Kg7 {[%clk 0:01:04]} 31. Rdc1 {[%clk 0:01:12]}  Rd7 {[%clk 0:00:59]} 32. R7c4 {[%clk 0:01:11]}  Rhd8 {[%clk 0:00:58]} 33. Nf3 {[%clk 0:01:10]}  Qe6 {[%clk 0:00:52]} 34. e4 {[%clk 0:01:08]}  Qg4 {[%clk 0:00:49]} 35. Ke2 {[%clk 0:01:01]}  Qf4 {[%clk 0:00:47]} 36. R1c2 {[%clk 0:00:51]}  b5 {[%clk 0:00:47]} 37. Rc6 {[%clk 0:00:48]}  Qxe4+ {[%clk 0:00:41]} 38. Kf1 {[%clk 0:00:49]}  Rd1+ {[%clk 0:00:40]} 0-1


[Site "https://www.chess.com"]

[Event "Titled Tuesday Blitz March 28 Early 2023"]
[White "Novikova, Galina"]
[Black "Kornyukov, Alexey"]
[WhiteFideId "4157095"]
[BlackFideId "4150457"]
[WhiteElo "1953"]
[BlackElo "2352"]
[Result "0-1"]
[Round "04"]
[TimeControl "180+2"]
[Date "2023.03.28"]
[WhiteClock "0:00:47"]
[BlackClock "0:00:28"]

1. e4 {[%clk 0:02:57]}  c5 {[%clk 0:02:59]} 2. Nf3 {[%clk 0:02:57]}  Nc6 {[%clk 0:02:58]} 3. d4 {[%clk 0:02:57]}  cxd4 {[%clk 0:02:56]} 4. Nxd4 {[%clk 0:02:58]}  e5 {[%clk 0:02:56]} 5. Nb3 {[%clk 0:02:56]}  Nf6 {[%clk 0:02:56]} 6. Bg5 {[%clk 0:02:55]}  Bb4+ {[%clk 0:02:54]} 7. c3 {[%clk 0:02:52]}  Be7 {[%clk 0:02:53]} 8. N1d2 {[%clk 0:02:50]}  O-O {[%clk 0:02:51]} 9. Bc4 {[%clk 0:02:46]}  h6 {[%clk 0:02:50]} 10. Bxf6 {[%clk 0:02:44]}  Bxf6 {[%clk 0:02:44]} 11. O-O {[%clk 0:02:45]}  d6 {[%clk 0:02:43]} 12. Nf3 {[%clk 0:02:35]}  Be6 {[%clk 0:02:35]} 13. Qe2 {[%clk 0:02:35]}  Rc8 {[%clk 0:02:31]} 14. Rad1 {[%clk 0:02:34]}  Bxc4 {[%clk 0:02:29]} 15. Qxc4 {[%clk 0:02:34]}  Nd4 {[%clk 0:02:28]} 16. Qd3 {[%clk 0:02:32]}  Nxb3 {[%clk 0:02:20]} 17. axb3 {[%clk 0:02:32]}  Be7 {[%clk 0:02:18]} 18. Ne1 {[%clk 0:02:26]}  Qb6 {[%clk 0:02:11]} 19. b4 {[%clk 0:02:26]}  Rfd8 {[%clk 0:02:06]} 20. Nc2 {[%clk 0:02:25]}  Bf6 {[%clk 0:01:55]} 21. Ne3 {[%clk 0:02:24]}  Qc6 {[%clk 0:01:50]} 22. Nd5 {[%clk 0:02:24]}  Bg5 {[%clk 0:01:47]} 23. Qg3 {[%clk 0:02:08]}  Qc4 {[%clk 0:01:37]} 24. h4 {[%clk 0:02:03]}  Bf4 {[%clk 0:01:31]} 25. Qf3 {[%clk 0:01:56]}  Re8 {[%clk 0:01:25]} 26. g3 {[%clk 0:01:55]}  Re6 {[%clk 0:01:09]} 27. gxf4 {[%clk 0:01:53]}  exf4 {[%clk 0:01:02]} 28. Rd4 {[%clk 0:01:43]}  Rg6+ {[%clk 0:00:56]} 29. Kh1 {[%clk 0:01:42]}  Qxf1+ {[%clk 0:00:56]} 30. Kh2 {[%clk 0:01:36]}  Qg1+ {[%clk 0:00:53]} 31. Kh3 {[%clk 0:01:36]}  Qf1+ {[%clk 0:00:50]} 32. Kh2 {[%clk 0:01:36]}  Re8 {[%clk 0:00:47]} 33. Nxf4 {[%clk 0:01:33]}  Qg1+ {[%clk 0:00:46]} 34. Kh3 {[%clk 0:01:33]}  Rf6 {[%clk 0:00:44]} 35. Qg3 {[%clk 0:01:25]}  Qh1+ {[%clk 0:00:44]} 36. Kg4 {[%clk 0:01:23]}  h5+ {[%clk 0:00:42]} 37. Kxh5 {[%clk 0:01:11]}  Re5+ {[%clk 0:00:35]} 38. Kg4 {[%clk 0:01:11]}  Qa1 {[%clk 0:00:30]} 39. Kh3 {[%clk 0:00:50]}  Qh1+ {[%clk 0:00:30]} 40. Kg4 {[%clk 0:00:49]}  Rxe4 {[%clk 0:00:30]} 41. Rxe4 {[%clk 0:00:46]}  Qxe4 {[%clk 0:00:30]} 42. f3 {[%clk 0:00:47]}  Qf5# {[%clk 0:00:28]} 0-1


[Site "https://www.chess.com"]

[Event "Titled Tuesday Blitz March 28 Early 2023"]
[White "crosky"]
[Black "Sanchez, Robert"]
[BlackFideId "2034360"]
[WhiteElo "2332"]
[BlackElo "2142"]
[Result "1-0"]
[Round "04"]
[TimeControl "180+2"]
[Date "2023.03.28"]
[WhiteClock "0:00:29"]
[BlackClock "0:02:06"]

1. c4 {[%clk 0:03:00]}  c6 {[%clk 0:02:59]} 2. Nf3 {[%clk 0:03:00]}  d5 {[%clk 0:02:59]} 3. e3 {[%clk 0:03:00]}  Nf6 {[%clk 0:02:59]} 4. Nc3 {[%clk 0:03:01]}  e6 {[%clk 0:02:58]} 5. d4 {[%clk 0:03:01]}  Be7 {[%clk 0:02:58]} 6. Qc2 {[%clk 0:03:00]}  O-O {[%clk 0:02:58]} 7. Bd3 {[%clk 0:02:59]}  dxc4 {[%clk 0:02:58]} 8. Bxc4 {[%clk 0:03:00]}  b5 {[%clk 0:02:58]} 9. Bb3 {[%clk 0:02:50]}  Bb7 {[%clk 0:02:56]} 10. O-O {[%clk 0:02:49]}  a6 {[%clk 0:02:55]} 11. e4 {[%clk 0:02:15]}  Nbd7 {[%clk 0:02:47]} 12. e5 {[%clk 0:02:11]}  Nd5 {[%clk 0:02:47]} 13. Ne4 {[%clk 0:02:11]}  c5 {[%clk 0:02:39]} 14. dxc5 {[%clk 0:02:00]}  Rc8 {[%clk 0:02:39]} 15. Bxd5 {[%clk 0:01:57]}  exd5 {[%clk 0:02:29]} 16. Neg5 {[%clk 0:01:44]}  g6 {[%clk 0:02:22]} 17. b4 {[%clk 0:01:44]}  Nxe5 {[%clk 0:02:19]} 18. Bb2 {[%clk 0:01:17]}  Nc4 {[%clk 0:02:19]} 19. h4 {[%clk 0:00:45]}  Nxb2 {[%clk 0:02:18]} 20. Qxb2 {[%clk 0:00:46]}  Bf6 {[%clk 0:02:18]} 21. Qc2 {[%clk 0:00:44]}  Bxa1 {[%clk 0:02:17]} 22. Rxa1 {[%clk 0:00:45]}  h6 {[%clk 0:02:13]} 23. Nh3 {[%clk 0:00:41]}  Qf6 {[%clk 0:02:13]} 24. Rd1 {[%clk 0:00:39]}  Rfe8 {[%clk 0:02:08]} 25. Nd4 {[%clk 0:00:29]}  Re4 {[%clk 0:02:06]} 1-0


[Site "https://www.chess.com"]

[Event "Titled Tuesday Blitz March 28 Early 2023"]
[White "Mrudul Dehankar"]
[Black "Chemin, Justo Reinaldo"]
[WhiteFideId "25096990"]
[BlackFideId "2101580"]
[WhiteElo "2139"]
[BlackElo "1940"]
[Result "1-0"]
[Round "04"]
[TimeControl "180+2"]
[Date "2023.03.28"]
[WhiteClock "0:00:05"]
[BlackClock "0:00:40"]

1. e4 {[%clk 0:02:53]}  e5 {[%clk 0:02:58]} 2. Nc3 {[%clk 0:02:52]}  Nf6 {[%clk 0:02:57]} 3. Bc4 {[%clk 0:02:51]}  Nc6 {[%clk 0:02:54]} 4. d3 {[%clk 0:02:50]}  Bc5 {[%clk 0:02:53]} 5. f4 {[%clk 0:02:50]}  d6 {[%clk 0:02:52]} 6. f5 {[%clk 0:02:44]}  h6 {[%clk 0:02:34]} 7. Nf3 {[%clk 0:02:41]}  a6 {[%clk 0:02:34]} 8. a3 {[%clk 0:02:26]}  Qe7 {[%clk 0:02:26]} 9. Qe2 {[%clk 0:02:08]}  Bd7 {[%clk 0:02:15]} 10. Bd2 {[%clk 0:01:29]}  O-O-O {[%clk 0:02:06]} 11. O-O-O {[%clk 0:01:28]}  g6 {[%clk 0:02:04]} 12. fxg6 {[%clk 0:00:12]}  fxg6 {[%clk 0:02:03]} 13. h3 {[%clk 0:00:10]}  g5 {[%clk 0:02:01]} 14. Kb1 {[%clk 0:00:09]}  Rdf8 {[%clk 0:01:49]} 15. Rhf1 {[%clk 0:00:08]}  Be6 {[%clk 0:01:42]} 16. Nd5 {[%clk 0:00:05]}  Bxd5 {[%clk 0:01:40]} 17. exd5 {[%clk 0:00:06]}  Nb8 {[%clk 0:01:38]} 18. Ba2 {[%clk 0:00:06]}  Nbd7 {[%clk 0:01:25]} 19. d4 {[%clk 0:00:06]}  Bb6 {[%clk 0:01:23]} 20. dxe5 {[%clk 0:00:06]}  Nxe5 {[%clk 0:01:18]} 21. Rde1 {[%clk 0:00:06]}  Re8 {[%clk 0:01:13]} 22. Nxe5 {[%clk 0:00:06]}  dxe5 {[%clk 0:01:09]} 23. Bb4 {[%clk 0:00:06]}  Bc5 {[%clk 0:01:04]} 24. Bxc5 {[%clk 0:00:05]}  Qxc5 {[%clk 0:01:03]} 25. Rxf6 {[%clk 0:00:06]}  e4 {[%clk 0:01:00]} 26. Bb3 {[%clk 0:00:05]}  Qd4 {[%clk 0:00:58]} 27. Re6 {[%clk 0:00:06]}  Rxe6 {[%clk 0:00:56]} 28. dxe6 {[%clk 0:00:06]}  Re8 {[%clk 0:00:52]} 29. Qxe4 {[%clk 0:00:06]}  Qd6 {[%clk 0:00:52]} 30. e7 {[%clk 0:00:05]}  Kb8 {[%clk 0:00:48]} 31. Qe6 {[%clk 0:00:05]}  Qd2 {[%clk 0:00:46]} 32. Ka2 {[%clk 0:00:03]}  Qxg2 {[%clk 0:00:43]} 33. Qd7 {[%clk 0:00:04]}  Qc6 {[%clk 0:00:41]} 34. Qxc6 {[%clk 0:00:04]}  bxc6 {[%clk 0:00:40]} 35. Bf7 {[%clk 0:00:05]} 1-0


[Site "https://www.chess.com"]

[Event "Titled Tuesday Blitz March 28 Early 2023"]
[White "Michalski, Olaf"]
[Black "Coelho, Ramyres Santana"]
[WhiteFideId "1106740"]
[BlackFideId "2120690"]
[WhiteElo "2173"]
[BlackElo "1888"]
[Result "1-0"]
[Round "04"]
[TimeControl "180+2"]
[Date "2023.03.28"]
[WhiteClock "0:00:18"]
[BlackClock "0:00:23"]

1. d4 {[%clk 0:02:59]}  c5 {[%clk 0:02:58]} 2. d5 {[%clk 0:02:58]}  d6 {[%clk 0:02:58]} 3. Nc3 {[%clk 0:02:57]}  Nf6 {[%clk 0:02:59]} 4. e4 {[%clk 0:02:57]}  g6 {[%clk 0:03:00]} 5. Nf3 {[%clk 0:02:57]}  Bg7 {[%clk 0:03:00]} 6. Bb5+ {[%clk 0:02:57]}  Nbd7 {[%clk 0:03:00]} 7. a4 {[%clk 0:02:57]}  a6 {[%clk 0:03:00]} 8. Be2 {[%clk 0:02:57]}  O-O {[%clk 0:03:00]} 9. O-O {[%clk 0:02:57]}  Ne5 {[%clk 0:03:01]} 10. Nd2 {[%clk 0:02:56]}  Ned7 {[%clk 0:02:54]} 11. Nc4 {[%clk 0:02:51]}  Nb6 {[%clk 0:02:52]} 12. Ne3 {[%clk 0:02:47]}  Ne8 {[%clk 0:02:49]} 13. h4 {[%clk 0:02:41]}  e5 {[%clk 0:02:45]} 14. dxe6 {[%clk 0:02:36]}  Qxh4 {[%clk 0:02:41]} 15. a5 {[%clk 0:02:18]}  fxe6 {[%clk 0:01:57]} 16. axb6 {[%clk 0:02:15]}  Be5 {[%clk 0:01:57]} 17. Ng4 {[%clk 0:02:03]}  Bg7 {[%clk 0:01:47]} 18. g3 {[%clk 0:01:52]}  Qh3 {[%clk 0:01:45]} 19. Bf3 {[%clk 0:01:52]}  e5 {[%clk 0:01:43]} 20. Ne3 {[%clk 0:01:45]}  h5 {[%clk 0:01:30]} 21. Bg2 {[%clk 0:01:31]}  Qd7 {[%clk 0:01:28]} 22. Ncd5 {[%clk 0:01:20]}  Nf6 {[%clk 0:01:23]} 23. Nxf6+ {[%clk 0:01:15]}  Rxf6 {[%clk 0:01:24]} 24. Nd5 {[%clk 0:01:15]}  Rf8 {[%clk 0:01:21]} 25. Bg5 {[%clk 0:01:14]}  Qf7 {[%clk 0:01:15]} 26. Ne7+ {[%clk 0:01:07]}  Kh7 {[%clk 0:01:15]} 27. Nxc8 {[%clk 0:01:07]}  Raxc8 {[%clk 0:01:15]} 28. Qd5 {[%clk 0:01:04]}  Qxd5 {[%clk 0:01:05]} 29. exd5 {[%clk 0:01:04]}  e4 {[%clk 0:01:03]} 30. c3 {[%clk 0:01:00]}  Rce8 {[%clk 0:00:58]} 31. Bf4 {[%clk 0:00:46]}  Be5 {[%clk 0:00:52]} 32. Bxe5 {[%clk 0:00:46]}  Rxe5 {[%clk 0:00:53]} 33. Rad1 {[%clk 0:00:44]}  Rff5 {[%clk 0:00:50]} 34. Bh3 {[%clk 0:00:41]}  Rg5 {[%clk 0:00:47]} 35. Be6 {[%clk 0:00:40]}  h4 {[%clk 0:00:47]} 36. g4 {[%clk 0:00:41]}  e3 {[%clk 0:00:38]} 37. f4 {[%clk 0:00:38]}  Rxe6 {[%clk 0:00:32]} 38. fxg5 {[%clk 0:00:31]}  Re4 {[%clk 0:00:30]} 39. Rde1 {[%clk 0:00:27]}  Rxg4+ {[%clk 0:00:28]} 40. Kh2 {[%clk 0:00:27]}  Rxg5 {[%clk 0:00:26]} 41. c4 {[%clk 0:00:26]}  Rg4 {[%clk 0:00:18]} 42. b3 {[%clk 0:00:23]}  Kh6 {[%clk 0:00:17]} 43. Rxe3 {[%clk 0:00:22]}  Rd4 {[%clk 0:00:17]} 44. Kh3 {[%clk 0:00:20]}  g5 {[%clk 0:00:17]} 45. Rg1 {[%clk 0:00:19]}  Kh5 {[%clk 0:00:17]} 46. Re8 {[%clk 0:00:17]}  g4+ {[%clk 0:00:17]} 47. Kg2 {[%clk 0:00:18]}  Rd2+ {[%clk 0:00:17]} 48. Kf1 {[%clk 0:00:18]}  g3 {[%clk 0:00:17]} 49. Rh8+ {[%clk 0:00:17]}  Kg4 {[%clk 0:00:17]} 50. Rg8+ {[%clk 0:00:17]}  Kh3 {[%clk 0:00:17]} 51. Rh1+ {[%clk 0:00:17]}  Rh2 {[%clk 0:00:16]} 52. Kg1 {[%clk 0:00:16]}  a5 {[%clk 0:00:05]} 53. Rxh2+ {[%clk 0:00:10]}  gxh2+ {[%clk 0:00:06]} 54. Kh1 {[%clk 0:00:11]}  a4 {[%clk 0:00:07]} 55. b4 {[%clk 0:00:10]}  a3 {[%clk 0:00:07]} 56. Ra8 {[%clk 0:00:09]}  cxb4 {[%clk 0:00:07]} 57. c5 {[%clk 0:00:10]}  dxc5 {[%clk 0:00:07]} 58. d6 {[%clk 0:00:10]}  b3 {[%clk 0:00:07]} 59. Rxa3 {[%clk 0:00:09]}  Kg4 {[%clk 0:00:06]} 60. Rxb3 {[%clk 0:00:09]}  c4 {[%clk 0:00:06]} 61. Rc3 {[%clk 0:00:09]}  Kg5 {[%clk 0:00:07]} 62. Kxh2 {[%clk 0:00:08]}  Kf6 {[%clk 0:00:08]} 63. Kh3 {[%clk 0:00:09]}  Ke6 {[%clk 0:00:09]} 64. Kxh4 {[%clk 0:00:10]}  Kxd6 {[%clk 0:00:10]} 65. Rxc4 {[%clk 0:00:10]}  Kd5 {[%clk 0:00:10]} 66. Rc7 {[%clk 0:00:10]}  Kd6 {[%clk 0:00:11]} 67. Rxb7 {[%clk 0:00:11]}  Kc6 {[%clk 0:00:12]} 68. Rc7+ {[%clk 0:00:12]}  Kxb6 {[%clk 0:00:12]} 69. Rc1 {[%clk 0:00:12]}  Kb5 {[%clk 0:00:13]} 70. Kg4 {[%clk 0:00:13]}  Kb4 {[%clk 0:00:14]} 71. Kf4 {[%clk 0:00:14]}  Kb3 {[%clk 0:00:15]} 72. Rc8 {[%clk 0:00:14]}  Kb2 {[%clk 0:00:15]} 73. Ke3 {[%clk 0:00:15]}  Kb3 {[%clk 0:00:16]} 74. Kd3 {[%clk 0:00:15]}  Kb4 {[%clk 0:00:17]} 75. Rc4+ {[%clk 0:00:15]}  Kb5 {[%clk 0:00:18]} 76. Kd4 {[%clk 0:00:15]}  Kb6 {[%clk 0:00:19]} 77. Rc5 {[%clk 0:00:16]}  Kb7 {[%clk 0:00:19]} 78. Kd5 {[%clk 0:00:16]}  Kb6 {[%clk 0:00:20]} 79. Kd6 {[%clk 0:00:16]}  Kb7 {[%clk 0:00:21]} 80. Rc6 {[%clk 0:00:16]}  Kb8 {[%clk 0:00:21]} 81. Rc7 {[%clk 0:00:17]}  Ka8 {[%clk 0:00:22]} 82. Kc6 {[%clk 0:00:17]}  Kb8 {[%clk 0:00:23]} 83. Kb6 {[%clk 0:00:17]}  Ka8 {[%clk 0:00:23]} 84. Rc8# {[%clk 0:00:18]} 1-0


[Site "https://www.chess.com"]

[Event "Titled Tuesday Blitz March 28 Early 2023"]
[White "sebastianmarinp"]
[Black "dorpato"]
[WhiteElo "2294"]
[BlackElo "2039"]
[Result "1-0"]
[Round "04"]
[TimeControl "180+2"]
[Date "2023.03.28"]
[WhiteClock "0:01:36"]
[BlackClock "0:00:06"]

1. e4 {[%clk 0:03:00]}  c5 {[%clk 0:02:56]} 2. Nf3 {[%clk 0:03:00]}  g6 {[%clk 0:02:54]} 3. d4 {[%clk 0:03:00]}  cxd4 {[%clk 0:02:55]} 4. Nxd4 {[%clk 0:03:00]}  Bg7 {[%clk 0:02:55]} 5. Nc3 {[%clk 0:03:01]}  Nc6 {[%clk 0:02:54]} 6. Be3 {[%clk 0:03:01]}  Nf6 {[%clk 0:02:54]} 7. Bc4 {[%clk 0:03:00]}  O-O {[%clk 0:02:52]} 8. Bb3 {[%clk 0:03:00]}  d6 {[%clk 0:02:25]} 9. f3 {[%clk 0:02:59]}  Bd7 {[%clk 0:02:24]} 10. Qd2 {[%clk 0:02:59]}  a6 {[%clk 0:01:49]} 11. h4 {[%clk 0:02:56]}  h5 {[%clk 0:01:45]} 12. O-O-O {[%clk 0:02:56]}  b5 {[%clk 0:01:43]} 13. Kb1 {[%clk 0:02:47]}  b4 {[%clk 0:01:40]} 14. Nd5 {[%clk 0:02:47]}  Nxd5 {[%clk 0:01:37]} 15. exd5 {[%clk 0:02:48]}  Nxd4 {[%clk 0:01:27]} 16. Bxd4 {[%clk 0:02:49]}  a5 {[%clk 0:01:24]} 17. g4 {[%clk 0:02:43]}  hxg4 {[%clk 0:01:23]} 18. h5 {[%clk 0:02:42]}  g5 {[%clk 0:00:24]} 19. Qxg5 {[%clk 0:02:05]}  f6 {[%clk 0:00:19]} 20. Qf4 {[%clk 0:01:53]}  Bh8 {[%clk 0:00:08]} 21. Bc4 {[%clk 0:01:40]}  f5 {[%clk 0:00:07]} 22. Qg5+ {[%clk 0:01:36]}  Kf7 {[%clk 0:00:06]} 23. Qg6# {[%clk 0:01:36]} 1-0


[Site "https://www.chess.com"]